{"text_format":"1","workbook":"xlsx","n_sheets":5,"sheets":["Key Staff Availability","Firm Participation Summary","Task Resource Summary","Alameda CTC Contracts Summary","Conflicts of Interest"],"not_rendered":{"charts":0,"images":0,"macros":0,"external_links":0,"defined_names":0,"comments":0,"pivot_tables":0},"unopened":[],"bounds":{"document_bytes":16777216,"sheet_cells":100000,"rows_first":2000,"rows_last":500,"rows_between":2000,"halvings":0,"cell_chars":16384,"cell_head_chars":4096},"cells_cut":0,"cells_raw":0,"read":"whole","date_system":"1900"}

{"sheet":"Key Staff Availability","index":0,"n_rows":4,"n_cols":9,"rows_kept":4,"cut":false,"hidden":false,"merged":[]}
["Key Personnel Availability Summary",null,"Do not provide any cost information on this form."]
[]
["Name of Key Personnel","Firm Name","Location of Key Personnel's Primary Office \n(City)","Role","Responsibilities","Availability\n(%)","Date of Availability","Relevant Permit/Licensure","References \n(Client Name and Company)"]
[null,null,null,null,null,null,null,null,"1. \n2. \n3. "]

{"sheet":"Firm Participation Summary","index":1,"n_rows":22,"n_cols":9,"rows_kept":22,"cut":false,"hidden":false,"merged":[]}
["Firm Participation Summary","Do not provide any cost information on this form."]
[]
["Firm Name","Services to be Provided","Classification of Workers Subject to Prevailing Wage *","Public Works Contractor (PWC) Registration No. \nwith DIR *","PWC Registration \nExpiration Date *","Contractor License No.","Estimated Date to Begin Work","Comments/ Assumptions","Lawsuit/Litigations \n(\"None\" or provide details)"]
[]
[]
[]
[]
[]
[]
[]
[]
[]
[]
[]
[]
[]
[]
[]
[]
[]
[]
["* The prime contractor and any subcontractor providing prevailing wage services must provide their PWC Registration number and expiration date. Caltrans LAPM Exhibit 10-H4 is required for any firms performing prevailing wage work."]

{"sheet":"Task Resource Summary","index":2,"n_rows":22,"n_cols":7,"rows_kept":22,"cut":false,"hidden":false,"merged":[]}
["Task Resource Summary","Do not provide any cost information on this form."]
[]
[null,"Firm Name:","Firm A","Firm B","Firm C","Firm D","Firm ..."]
[null,"Location (City, State) of Key Personnel's Primary Office:","City, State","City, State","City, State","City, State","City, State"]
["Task","Total Hours","Hours","Hours","Hours","Hours","Hours"]
[null,{"$f":"SUM(C6:G6)","v":0}]
[null,{"$f":"SUM(C7:G7)","v":0}]
[null,0]
[null,{"$f":"SUM(C9:G9)","v":0}]
[null,0]
[null,0]
[null,0]
[null,0]
[null,0]
[null,0]
["Total:",{"$f":"SUM(B6:B15)","v":0},{"$f":"SUM(C6:C15)","v":0},0,0,0,0]
["Percentage of Total Hours in Proposal:","--",{"$f":"+C16/$B$16","v":{"$error":"#DIV/0!"}},{"$f":"+D16/$B$16","v":{"$error":"#DIV/0!"}},{"$error":"#DIV/0!"},{"$error":"#DIV/0!"},{"$error":"#DIV/0!"}]
["Firm Size for Primary Office (FTE)*:"]
["Firm FTE Contract Commitment*:"]
["% Commitment:",{"$f":"+B19/B18","v":{"$error":"#DIV/0!"}},{"$f":"+C19/C18","v":{"$error":"#DIV/0!"}},{"$error":"#DIV/0!"},{"$error":"#DIV/0!"},{"$error":"#DIV/0!"},{"$error":"#DIV/0!"}]
[]
["*  The FTE is for the location noted.  If resources will be from multiple locations, please use one column for each location."]

{"sheet":"Alameda CTC Contracts Summary","index":3,"n_rows":3,"n_cols":4,"rows_kept":3,"cut":false,"hidden":false,"merged":[]}
["Alameda CTC Contracts Summary"]
[]
["Firm Name","Scope of Work Description","Total Contract Amount","Date of Execution"]

{"sheet":"Conflicts of Interest","index":4,"n_rows":22,"n_cols":2,"rows_kept":22,"cut":false,"hidden":false,"merged":[]}
["Potential Conflicts of Interest"]
[]
["Firm's Clients","Description of Work "]
[]
[]
[]
[]
[]
[]
[]
[]
[]
[]
[]
[]
[]
[]
[]
[]
[]
[]
["*  Add any additional columns or information as needed or as appropriate."]